[Event "Titled Tuesday Blitz March 01 Late 2022"]
[White "Shuvalova, Polina"]
[Black "Domingo Nunez, Alejandro"]
[WhiteFideId "24171760"]
[BlackFideId "22245561"]
[WhiteElo "2355"]
[BlackElo "2215"]
[Result "0-1"]
[Round "05"]
[TimeControl "180+1"]
[Date "2022.03.02"]
[WhiteClock "0:00:02"]
[BlackClock "0:00:11"]

1. d4 {[%clk 0:03:00]}  g6 {[%clk 0:02:56]} 2. Nf3 {[%clk 0:02:59]}  Bg7 {[%clk 0:02:57]} 3. c4 {[%clk 0:02:58]}  d6 {[%clk 0:02:56]} 4. Nc3 {[%clk 0:02:53]}  Nd7 {[%clk 0:02:57]} 5. e4 {[%clk 0:02:53]}  e5 {[%clk 0:02:57]} 6. Be2 {[%clk 0:02:50]}  Ne7 {[%clk 0:02:55]} 7. O-O {[%clk 0:02:49]}  O-O {[%clk 0:02:55]} 8. Re1 {[%clk 0:02:29]}  exd4 {[%clk 0:02:55]} 9. Nxd4 {[%clk 0:02:28]}  Nc6 {[%clk 0:02:56]} 10. Be3 {[%clk 0:02:25]}  Re8 {[%clk 0:02:49]} 11. Nxc6 {[%clk 0:02:18]}  bxc6 {[%clk 0:02:49]} 12. Qd2 {[%clk 0:02:16]}  Rb8 {[%clk 0:02:47]} 13. Rad1 {[%clk 0:02:14]}  a5 {[%clk 0:02:39]} 14. f3 {[%clk 0:02:13]}  Qe7 {[%clk 0:02:32]} 15. Bf1 {[%clk 0:02:12]}  Ba6 {[%clk 0:02:23]} 16. b3 {[%clk 0:01:41]}  Nc5 {[%clk 0:02:12]} 17. Ne2 {[%clk 0:01:38]}  a4 {[%clk 0:02:10]} 18. b4 {[%clk 0:01:33]}  Nd7 {[%clk 0:02:09]} 19. Nd4 {[%clk 0:01:29]}  Ne5 {[%clk 0:01:25]} 20. b5 {[%clk 0:00:52]}  Bb7 {[%clk 0:01:06]} 21. h3 {[%clk 0:00:50]}  c5 {[%clk 0:00:56]} 22. Nc2 {[%clk 0:00:48]}  Nd7 {[%clk 0:00:53]} 23. a3 {[%clk 0:00:44]}  Nb6 {[%clk 0:00:53]} 24. Kh1 {[%clk 0:00:37]}  Bc8 {[%clk 0:00:45]} 25. Bg5 {[%clk 0:00:35]}  Qf8 {[%clk 0:00:44]} 26. Ne3 {[%clk 0:00:33]}  h6 {[%clk 0:00:25]} 27. Bh4 {[%clk 0:00:33]}  Bd4 {[%clk 0:00:23]} 28. Qc2 {[%clk 0:00:32]}  Qg7 {[%clk 0:00:22]} 29. Nd5 {[%clk 0:00:30]}  Nxd5 {[%clk 0:00:20]} 30. exd5 {[%clk 0:00:30]}  Bf5 {[%clk 0:00:20]} 31. Bd3 {[%clk 0:00:28]}  Bxd3 {[%clk 0:00:17]} 32. Qxd3 {[%clk 0:00:29]}  Bb2 {[%clk 0:00:16]} 33. Bf2 {[%clk 0:00:18]}  Qc3 {[%clk 0:00:15]} 34. Qxc3 {[%clk 0:00:11]}  Bxc3 {[%clk 0:00:16]} 35. Rxe8+ {[%clk 0:00:03]}  Rxe8 {[%clk 0:00:17]} 36. Rd3 {[%clk 0:00:04]}  Bb2 {[%clk 0:00:14]} 37. Be3 {[%clk 0:00:04]}  g5 {[%clk 0:00:11]} 38. Kg1 {[%clk 0:00:05]}  Kg7 {[%clk 0:00:12]} 39. Kf2 {[%clk 0:00:06]}  f5 {[%clk 0:00:12]} 40. g3 {[%clk 0:00:04]}  Kf6 {[%clk 0:00:12]} 41. f4 {[%clk 0:00:04]}  g4 {[%clk 0:00:12]} 42. h4 {[%clk 0:00:04]}  Re4 {[%clk 0:00:12]} 43. b6 {[%clk 0:00:02]}  cxb6 {[%clk 0:00:11]} 44. Bd2 {[%clk 0:00:01]}  Rxc4 {[%clk 0:00:11]} 45. Re3 {[%clk 0:00:02]}  Bd4 {[%clk 0:00:11]} 46. Ke2 {[%clk 0:00:02]}  Bxe3 {[%clk 0:00:11]} 0-1


[Site "https://www.chess.com"]

[Event "Titled Tuesday Blitz March 01 Late 2022"]
[White "Suarez Uriel, Adrian"]
[Black "Kulon, Klaudia"]
[WhiteFideId "22230874"]
[BlackFideId "1131044"]
[WhiteElo "2316"]
[BlackElo "2281"]
[Result "1-0"]
[Round "05"]
[TimeControl "180+1"]
[Date "2022.03.02"]
[WhiteClock "0:00:29"]
[BlackClock "0:00:15"]

1. e4 {[%clk 0:02:59]}  e5 {[%clk 0:02:59]} 2. Nf3 {[%clk 0:02:59]}  Nc6 {[%clk 0:02:59]} 3. Bb5 {[%clk 0:02:59]}  a6 {[%clk 0:02:58]} 4. Ba4 {[%clk 0:02:58]}  d6 {[%clk 0:02:58]} 5. O-O {[%clk 0:02:58]}  Bd7 {[%clk 0:02:57]} 6. d4 {[%clk 0:02:58]}  b5 {[%clk 0:02:47]} 7. Bb3 {[%clk 0:02:51]}  exd4 {[%clk 0:02:40]} 8. Bd5 {[%clk 0:02:50]}  Nf6 {[%clk 0:02:37]} 9. Nxd4 {[%clk 0:02:48]}  Nxd5 {[%clk 0:02:34]} 10. exd5 {[%clk 0:02:47]}  Ne5 {[%clk 0:02:21]} 11. f4 {[%clk 0:02:34]}  Ng6 {[%clk 0:02:18]} 12. a4 {[%clk 0:02:22]}  Be7 {[%clk 0:02:16]} 13. axb5 {[%clk 0:02:21]}  axb5 {[%clk 0:02:17]} 14. Rxa8 {[%clk 0:02:21]}  Qxa8 {[%clk 0:02:18]} 15. Nc3 {[%clk 0:02:20]}  b4 {[%clk 0:02:13]} 16. Ncb5 {[%clk 0:02:10]}  O-O {[%clk 0:02:11]} 17. c4 {[%clk 0:01:45]}  bxc3 {[%clk 0:02:03]} 18. Nxc3 {[%clk 0:01:45]}  Bf6 {[%clk 0:02:03]} 19. Kh1 {[%clk 0:01:41]}  Ne7 {[%clk 0:02:01]} 20. Nde2 {[%clk 0:01:10]}  Bg4 {[%clk 0:01:53]} 21. h3 {[%clk 0:00:56]}  Bxe2 {[%clk 0:01:49]} 22. Qxe2 {[%clk 0:00:57]}  Nxd5 {[%clk 0:01:46]} 23. Ne4 {[%clk 0:00:56]}  Re8 {[%clk 0:01:34]} 24. Qf3 {[%clk 0:00:51]}  Bd4 {[%clk 0:01:28]} 25. Rd1 {[%clk 0:00:50]}  Qa7 {[%clk 0:01:04]} 26. Nxd6 {[%clk 0:00:50]}  cxd6 {[%clk 0:00:58]} 27. Qxd5 {[%clk 0:00:50]}  Bc5 {[%clk 0:00:58]} 28. Bd2 {[%clk 0:00:49]}  Qb6 {[%clk 0:00:55]} 29. Bc3 {[%clk 0:00:48]}  h6 {[%clk 0:00:53]} 30. f5 {[%clk 0:00:44]}  Re2 {[%clk 0:00:47]} 31. f6 {[%clk 0:00:42]}  gxf6 {[%clk 0:00:25]} 32. Bxf6 {[%clk 0:00:41]}  Qa7 {[%clk 0:00:17]} 33. Qf3 {[%clk 0:00:34]}  Rf2 {[%clk 0:00:14]} 34. Qg4+ {[%clk 0:00:34]}  Kf8 {[%clk 0:00:15]} 35. Qc8# {[%clk 0:00:29]} 1-0


[Site "https://www.chess.com"]

[Event "Titled Tuesday Blitz March 01 Late 2022"]
[White "Suleymanli, Aydin"]
[Black "Weetik, Vjacheslav"]
[WhiteFideId "13413937"]
[BlackFideId "4153472"]
[WhiteElo "2529"]
[BlackElo "2469"]
[Result "1-0"]
[Round "05"]
[TimeControl "180+1"]
[Date "2022.03.01"]
[WhiteClock "0:00:13"]
[BlackClock "0:00:02"]

1. e4 {[%clk 0:03:00]}  c6 {[%clk 0:03:00]} 2. d4 {[%clk 0:02:57]}  d5 {[%clk 0:03:00]} 3. e5 {[%clk 0:02:57]}  Bf5 {[%clk 0:02:59]} 4. Nd2 {[%clk 0:02:57]}  e6 {[%clk 0:02:59]} 5. Nb3 {[%clk 0:02:55]}  Nd7 {[%clk 0:02:59]} 6. Nf3 {[%clk 0:02:48]}  Bg6 {[%clk 0:02:58]} 7. h4 {[%clk 0:02:47]}  h6 {[%clk 0:02:45]} 8. c4 {[%clk 0:02:37]}  dxc4 {[%clk 0:02:40]} 9. Bxc4 {[%clk 0:02:38]}  Ne7 {[%clk 0:02:35]} 10. h5 {[%clk 0:02:37]}  Bh7 {[%clk 0:02:30]} 11. Bd3 {[%clk 0:02:32]}  Bxd3 {[%clk 0:02:28]} 12. Qxd3 {[%clk 0:02:33]}  Nd5 {[%clk 0:02:18]} 13. O-O {[%clk 0:02:20]}  Be7 {[%clk 0:02:13]} 14. Bd2 {[%clk 0:02:19]}  O-O {[%clk 0:02:01]} 15. Rac1 {[%clk 0:02:18]}  Qb6 {[%clk 0:01:54]} 16. a4 {[%clk 0:02:10]}  a5 {[%clk 0:01:41]} 17. Rc2 {[%clk 0:01:59]}  Rfd8 {[%clk 0:01:36]} 18. Rfc1 {[%clk 0:01:58]}  Nb4 {[%clk 0:01:32]} 19. Bxb4 {[%clk 0:01:57]}  Bxb4 {[%clk 0:01:22]} 20. Qe3 {[%clk 0:01:51]}  Be7 {[%clk 0:01:16]} 21. Nbd2 {[%clk 0:01:51]}  Qa7 {[%clk 0:01:01]} 22. Ne4 {[%clk 0:01:43]}  Nb6 {[%clk 0:00:57]} 23. Nc5 {[%clk 0:01:27]}  Rd5 {[%clk 0:00:52]} 24. Qb3 {[%clk 0:00:58]}  Rad8 {[%clk 0:00:44]} 25. Nd3 {[%clk 0:00:58]}  Na8 {[%clk 0:00:32]} 26. Nf4 {[%clk 0:00:57]}  R5d7 {[%clk 0:00:32]} 27. d5 {[%clk 0:00:42]}  cxd5 {[%clk 0:00:26]} 28. Qd3 {[%clk 0:00:40]}  d4 {[%clk 0:00:16]} 29. Rd1 {[%clk 0:00:31]}  Nb6 {[%clk 0:00:17]} 30. Qb5 {[%clk 0:00:29]}  Nd5 {[%clk 0:00:16]} 31. Rxd4 {[%clk 0:00:25]}  b6 {[%clk 0:00:17]} 32. Rcd2 {[%clk 0:00:23]}  Qb7 {[%clk 0:00:12]} 33. Nxd5 {[%clk 0:00:16]}  exd5 {[%clk 0:00:12]} 34. Rg4 {[%clk 0:00:15]}  Bc5 {[%clk 0:00:12]} 35. Qd3 {[%clk 0:00:15]}  d4 {[%clk 0:00:11]} 36. Nh4 {[%clk 0:00:16]}  Qd5 {[%clk 0:00:10]} 37. Nf5 {[%clk 0:00:16]}  Qxe5 {[%clk 0:00:11]} 38. Re2 {[%clk 0:00:15]}  Qf6 {[%clk 0:00:10]} 39. Rxg7+ {[%clk 0:00:15]}  Qxg7 {[%clk 0:00:08]} 40. Nxg7 {[%clk 0:00:15]}  Kxg7 {[%clk 0:00:09]} 41. Re4 {[%clk 0:00:15]}  Rd5 {[%clk 0:00:09]} 42. Rg4+ {[%clk 0:00:14]}  Rg5 {[%clk 0:00:08]} 43. Rxg5+ {[%clk 0:00:13]}  hxg5 {[%clk 0:00:09]} 44. g4 {[%clk 0:00:13]}  Rd6 {[%clk 0:00:09]} 45. Kg2 {[%clk 0:00:13]}  Re6 {[%clk 0:00:04]} 46. Qf5 {[%clk 0:00:12]}  Be7 {[%clk 0:00:03]} 47. Qd5 {[%clk 0:00:13]}  Rd6 {[%clk 0:00:03]} 48. Qe5+ {[%clk 0:00:13]}  Rf6 {[%clk 0:00:02]} 49. Qxe7 {[%clk 0:00:13]} 1-0


[Site "https://www.chess.com"]

[Event "Titled Tuesday Blitz March 01 Late 2022"]
[White "Sztokbant, Bernardo Vainzoff"]
[Black "Hoffmann, Asa"]
[WhiteFideId "2115956"]
[BlackFideId "2001470"]
[WhiteElo "2264"]
[BlackElo "2117"]
[Result "0-1"]
[Round "05"]
[TimeControl "180+1"]
[Date "2022.03.02"]
[WhiteClock "0:00:07"]
[BlackClock "0:00:17"]

1. b3 {[%clk 0:03:00]}  d6 {[%clk 0:02:58]} 2. Bb2 {[%clk 0:03:01]}  Nd7 {[%clk 0:02:57]} 3. Nf3 {[%clk 0:03:01]}  Ngf6 {[%clk 0:02:57]} 4. e3 {[%clk 0:03:02]}  e5 {[%clk 0:02:56]} 5. d4 {[%clk 0:03:03]}  e4 {[%clk 0:02:54]} 6. Nfd2 {[%clk 0:03:04]}  d5 {[%clk 0:02:54]} 7. c4 {[%clk 0:03:04]}  c6 {[%clk 0:02:54]} 8. Nc3 {[%clk 0:03:04]}  a6 {[%clk 0:02:53]} 9. Be2 {[%clk 0:03:04]}  Bd6 {[%clk 0:02:53]} 10. Qc2 {[%clk 0:03:02]}  O-O {[%clk 0:02:52]} 11. O-O {[%clk 0:02:57]}  Re8 {[%clk 0:02:43]} 12. Rac1 {[%clk 0:02:53]}  h6 {[%clk 0:02:40]} 13. f3 {[%clk 0:02:31]}  exf3 {[%clk 0:02:34]} 14. Rxf3 {[%clk 0:02:32]}  Nf8 {[%clk 0:02:30]} 15. Nf1 {[%clk 0:02:30]}  Ng6 {[%clk 0:02:22]} 16. cxd5 {[%clk 0:02:29]}  cxd5 {[%clk 0:02:21]} 17. Bd3 {[%clk 0:02:15]}  Bg4 {[%clk 0:02:17]} 18. Rf2 {[%clk 0:01:50]}  Bh5 {[%clk 0:02:15]} 19. Bf5 {[%clk 0:01:46]}  Ng4 {[%clk 0:02:04]} 20. Bxg4 {[%clk 0:01:45]}  Bxg4 {[%clk 0:02:03]} 21. Nxd5 {[%clk 0:01:45]}  Rc8 {[%clk 0:01:58]} 22. Qd3 {[%clk 0:01:32]}  Rxc1 {[%clk 0:01:40]} 23. Bxc1 {[%clk 0:01:33]}  Qg5 {[%clk 0:01:20]} 24. Nc3 {[%clk 0:01:11]}  Nh4 {[%clk 0:01:11]} 25. Ne4 {[%clk 0:00:49]}  Qg6 {[%clk 0:01:08]} 26. Nc5 {[%clk 0:00:36]}  Bf5 {[%clk 0:00:56]} 27. e4 {[%clk 0:00:32]}  Bxe4 {[%clk 0:00:52]} 28. Nxe4 {[%clk 0:00:32]}  Qxe4 {[%clk 0:00:51]} 29. Qxe4 {[%clk 0:00:31]}  Rxe4 {[%clk 0:00:51]} 30. Bb2 {[%clk 0:00:29]}  Re1 {[%clk 0:00:44]} 31. g3 {[%clk 0:00:25]}  Ng6 {[%clk 0:00:42]} 32. Kg2 {[%clk 0:00:25]}  Ne7 {[%clk 0:00:39]} 33. Nd2 {[%clk 0:00:26]}  Nd5 {[%clk 0:00:37]} 34. Nc4 {[%clk 0:00:26]}  Bc7 {[%clk 0:00:35]} 35. Rf1 {[%clk 0:00:15]}  Re2+ {[%clk 0:00:35]} 36. Rf2 {[%clk 0:00:16]}  Re4 {[%clk 0:00:34]} 37. Kf3 {[%clk 0:00:15]}  f5 {[%clk 0:00:33]} 38. Re2 {[%clk 0:00:11]}  Rxe2 {[%clk 0:00:31]} 39. Kxe2 {[%clk 0:00:12]}  Kf7 {[%clk 0:00:30]} 40. Kf3 {[%clk 0:00:10]}  g5 {[%clk 0:00:30]} 41. h3 {[%clk 0:00:09]}  h5 {[%clk 0:00:30]} 42. a3 {[%clk 0:00:08]}  Ke6 {[%clk 0:00:30]} 43. Nd2 {[%clk 0:00:06]}  b5 {[%clk 0:00:29]} 44. Nf1 {[%clk 0:00:05]}  g4+ {[%clk 0:00:29]} 45. hxg4 {[%clk 0:00:05]}  hxg4+ {[%clk 0:00:28]} 46. Ke2 {[%clk 0:00:05]}  f4 {[%clk 0:00:28]} 47. gxf4 {[%clk 0:00:05]}  Bxf4 {[%clk 0:00:28]} 48. Kd3 {[%clk 0:00:05]}  Kf5 {[%clk 0:00:28]} 49. Ke2 {[%clk 0:00:04]}  Ke4 {[%clk 0:00:28]} 50. a4 {[%clk 0:00:03]}  g3 {[%clk 0:00:26]} 51. Nxg3+ {[%clk 0:00:02]}  Bxg3 {[%clk 0:00:26]} 52. axb5 {[%clk 0:00:03]}  axb5 {[%clk 0:00:26]} 53. Kd2 {[%clk 0:00:03]}  Bf2 {[%clk 0:00:26]} 54. Ke2 {[%clk 0:00:02]}  Bxd4 {[%clk 0:00:25]} 55. Bc1 {[%clk 0:00:03]}  b4 {[%clk 0:00:24]} 56. Bd2 {[%clk 0:00:03]}  Bc3 {[%clk 0:00:25]} 57. Bc1 {[%clk 0:00:03]}  Kd4 {[%clk 0:00:25]} 58. Bh6 {[%clk 0:00:02]}  Nb6 {[%clk 0:00:23]} 59. Bg7+ {[%clk 0:00:02]}  Kd5 {[%clk 0:00:23]} 60. Bf8 {[%clk 0:00:03]}  Nd7 {[%clk 0:00:22]} 61. Be7 {[%clk 0:00:03]}  Nc5 {[%clk 0:00:22]} 62. Bxc5 {[%clk 0:00:01]}  Kxc5 {[%clk 0:00:21]} 63. Kd3 {[%clk 0:00:02]}  Kd5 {[%clk 0:00:22]} 64. Ke3 {[%clk 0:00:02]}  Bg7 {[%clk 0:00:20]} 65. Kd3 {[%clk 0:00:03]}  Kc5 {[%clk 0:00:19]} 66. Ke4 {[%clk 0:00:03]}  Bf6 {[%clk 0:00:18]} 67. Kd3 {[%clk 0:00:04]}  Kd5 {[%clk 0:00:18]} 68. Ke3 {[%clk 0:00:05]}  Bg5+ {[%clk 0:00:18]} 69. Kd3 {[%clk 0:00:05]}  Bf4 {[%clk 0:00:18]} 70. Kc2 {[%clk 0:00:03]}  Kd4 {[%clk 0:00:18]} 71. Kb1 {[%clk 0:00:03]}  Kc3 {[%clk 0:00:18]} 72. Ka2 {[%clk 0:00:04]}  Be3 {[%clk 0:00:18]} 73. Kb1 {[%clk 0:00:04]}  Kxb3 {[%clk 0:00:17]} 74. Ka1 {[%clk 0:00:05]}  Bd4+ {[%clk 0:00:17]} 75. Kb1 {[%clk 0:00:06]}  Kc3 {[%clk 0:00:18]} 76. Kc1 {[%clk 0:00:06]}  b3 {[%clk 0:00:18]} 77. Kb1 {[%clk 0:00:07]}  b2 {[%clk 0:00:17]} 0-1


[Site "https://www.chess.com"]

[Event "Titled Tuesday Blitz March 01 Late 2022"]
[White "Tari, Aryan"]
[Black "Ibarra Jerez, Jose Carlos"]
[WhiteFideId "1510045"]
[BlackFideId "2226332"]
[WhiteElo "2567"]
[BlackElo "2626"]
[Result "1-0"]
[Round "05"]
[TimeControl "180+1"]
[Date "2022.03.01"]
[WhiteClock "0:01:02"]
[BlackClock "0:00:01"]

1. e4 {[%clk 0:03:00]}  c5 {[%clk 0:02:58]} 2. Nc3 {[%clk 0:03:01]}  a6 {[%clk 0:02:58]} 3. f4 {[%clk 0:02:59]}  b5 {[%clk 0:02:58]} 4. g3 {[%clk 0:02:59]}  Bb7 {[%clk 0:02:58]} 5. Bg2 {[%clk 0:03:00]}  e6 {[%clk 0:02:59]} 6. d3 {[%clk 0:02:59]}  d5 {[%clk 0:02:59]} 7. f5 {[%clk 0:02:52]}  d4 {[%clk 0:02:57]} 8. Nce2 {[%clk 0:02:44]}  exf5 {[%clk 0:02:57]} 9. Nh3 {[%clk 0:01:52]}  Nf6 {[%clk 0:02:45]} 10. O-O {[%clk 0:01:47]}  fxe4 {[%clk 0:02:45]} 11. dxe4 {[%clk 0:01:48]}  Be7 {[%clk 0:02:33]} 12. Nef4 {[%clk 0:01:45]}  O-O {[%clk 0:02:20]} 13. e5 {[%clk 0:01:33]}  Nd5 {[%clk 0:01:42]} 14. Qf3 {[%clk 0:01:33]}  Nxf4 {[%clk 0:01:11]} 15. Qxb7 {[%clk 0:01:34]}  Nxg2 {[%clk 0:01:06]} 16. Qxa8 {[%clk 0:01:32]}  Ne3 {[%clk 0:01:01]} 17. Bxe3 {[%clk 0:01:31]}  dxe3 {[%clk 0:01:02]} 18. Rad1 {[%clk 0:01:25]}  Qc8 {[%clk 0:00:56]} 19. Nf4 {[%clk 0:01:23]}  Qf5 {[%clk 0:00:47]} 20. Qf3 {[%clk 0:01:23]}  Qxe5 {[%clk 0:00:33]} 21. c3 {[%clk 0:01:20]}  Bg5 {[%clk 0:00:25]} 22. Rfe1 {[%clk 0:01:18]}  Bxf4 {[%clk 0:00:18]} 23. Qxf4 {[%clk 0:01:18]}  Qe6 {[%clk 0:00:12]} 24. b3 {[%clk 0:01:14]}  Nc6 {[%clk 0:00:09]} 25. Rxe3 {[%clk 0:01:13]}  Qg6 {[%clk 0:00:07]} 26. Qd6 {[%clk 0:01:08]}  Qc2 {[%clk 0:00:07]} 27. Rde1 {[%clk 0:01:03]}  g6 {[%clk 0:00:02]} 28. Qxc6 {[%clk 0:01:02]}  Kg7 {[%clk 0:00:01]} 29. Qxc5 {[%clk 0:01:02]} 1-0


[Site "https://www.chess.com"]

[Event "Titled Tuesday Blitz March 01 Late 2022"]
[White "Thavandiran, Shiyam"]
[Black "Nakamura, Hikaru"]
[WhiteFideId "2605058"]
[BlackFideId "2016192"]
[WhiteElo "2357"]
[BlackElo "2850"]
[Result "1-0"]
[Round "05"]
[TimeControl "180+1"]
[Date "2022.03.01"]
[WhiteClock "0:00:25"]
[BlackClock "0:00:35"]

1. e4 {[%clk 0:03:00]}  e6 {[%clk 0:02:55]} 2. d4 {[%clk 0:03:00]}  d5 {[%clk 0:02:54]} 3. Nc3 {[%clk 0:02:50]}  Nf6 {[%clk 0:02:52]} 4. e5 {[%clk 0:02:50]}  Nfd7 {[%clk 0:02:53]} 5. f4 {[%clk 0:02:51]}  c5 {[%clk 0:02:53]} 6. Nf3 {[%clk 0:02:51]}  a6 {[%clk 0:02:54]} 7. Be3 {[%clk 0:02:50]}  Qb6 {[%clk 0:02:55]} 8. Na4 {[%clk 0:02:45]}  Qa5+ {[%clk 0:02:54]} 9. c3 {[%clk 0:02:45]}  cxd4 {[%clk 0:02:55]} 10. b4 {[%clk 0:02:44]}  Qc7 {[%clk 0:02:55]} 11. Qxd4 {[%clk 0:02:31]}  b5 {[%clk 0:02:38]} 12. Nb2 {[%clk 0:02:31]}  Nc6 {[%clk 0:02:37]} 13. Qd2 {[%clk 0:02:31]}  a5 {[%clk 0:02:37]} 14. Bxb5 {[%clk 0:02:19]}  axb4 {[%clk 0:02:36]} 15. c4 {[%clk 0:02:10]}  b3 {[%clk 0:02:15]} 16. O-O {[%clk 0:02:07]}  Rxa2 {[%clk 0:02:14]} 17. cxd5 {[%clk 0:02:03]}  exd5 {[%clk 0:02:06]} 18. Qxd5 {[%clk 0:01:49]}  Na7 {[%clk 0:01:31]} 19. Qxb3 {[%clk 0:01:18]}  Rxa1 {[%clk 0:01:31]} 20. Rxa1 {[%clk 0:01:19]}  Nxb5 {[%clk 0:01:31]} 21. Qxb5 {[%clk 0:01:18]}  Be7 {[%clk 0:01:26]} 22. Rc1 {[%clk 0:01:16]}  Qb7 {[%clk 0:01:24]} 23. Qxb7 {[%clk 0:01:01]}  Bxb7 {[%clk 0:01:25]} 24. Nd4 {[%clk 0:01:02]}  Bd8 {[%clk 0:01:11]} 25. Nf5 {[%clk 0:00:56]}  O-O {[%clk 0:01:11]} 26. Nd6 {[%clk 0:00:56]}  Bd5 {[%clk 0:01:09]} 27. Nd3 {[%clk 0:00:54]}  Ba5 {[%clk 0:01:04]} 28. Kf2 {[%clk 0:00:50]}  g6 {[%clk 0:01:01]} 29. Nc5 {[%clk 0:00:48]}  Nb6 {[%clk 0:00:57]} 30. Ncb7 {[%clk 0:00:46]}  Nc4 {[%clk 0:00:46]} 31. Nxa5 {[%clk 0:00:46]}  Nxa5 {[%clk 0:00:44]} 32. Rc5 {[%clk 0:00:46]}  Bc6 {[%clk 0:00:44]} 33. Rxa5 {[%clk 0:00:45]}  Rb8 {[%clk 0:00:45]} 34. Ra2 {[%clk 0:00:42]}  h5 {[%clk 0:00:44]} 35. Rc2 {[%clk 0:00:40]}  Bd5 {[%clk 0:00:45]} 36. Rd2 {[%clk 0:00:41]}  Be6 {[%clk 0:00:45]} 37. Ne4 {[%clk 0:00:41]}  Ra8 {[%clk 0:00:44]} 38. Nc5 {[%clk 0:00:41]}  Bf5 {[%clk 0:00:44]} 39. h3 {[%clk 0:00:39]}  Kg7 {[%clk 0:00:44]} 40. Bd4 {[%clk 0:00:39]}  Kh6 {[%clk 0:00:43]} 41. Be3 {[%clk 0:00:37]}  Kg7 {[%clk 0:00:43]} 42. Nd3 {[%clk 0:00:36]}  Ra3 {[%clk 0:00:43]} 43. Ne1 {[%clk 0:00:36]}  Ra8 {[%clk 0:00:41]} 44. Nf3 {[%clk 0:00:37]}  Be4 {[%clk 0:00:41]} 45. g4 {[%clk 0:00:35]}  hxg4 {[%clk 0:00:41]} 46. hxg4 {[%clk 0:00:36]}  Rh8 {[%clk 0:00:41]} 47. Kg3 {[%clk 0:00:36]}  Ra8 {[%clk 0:00:41]} 48. Ng5 {[%clk 0:00:36]}  Ra3 {[%clk 0:00:39]} 49. Kf2 {[%clk 0:00:36]}  Bc6 {[%clk 0:00:40]} 50. Bd4 {[%clk 0:00:35]}  Kg8 {[%clk 0:00:40]} 51. Rc2 {[%clk 0:00:34]}  Bd7 {[%clk 0:00:39]} 52. Ne4 {[%clk 0:00:33]}  Be6 {[%clk 0:00:37]} 53. Nf6+ {[%clk 0:00:32]}  Kg7 {[%clk 0:00:37]} 54. Rb2 {[%clk 0:00:31]}  Ra4 {[%clk 0:00:36]} 55. Rb8 {[%clk 0:00:27]}  Bxg4 {[%clk 0:00:35]} 56. Rg8+ {[%clk 0:00:25]}  Kh6 {[%clk 0:00:35]} 57. Nxg4+ {[%clk 0:00:25]} 1-0


[Site "https://www.chess.com"]

[Event "Titled Tuesday Blitz March 01 Late 2022"]
[White "Toncheva, Nadya"]
[Black "Astasio Lopez, David"]
[WhiteFideId "2924056"]
[BlackFideId "2230208"]
[WhiteElo "1920"]
[BlackElo "2355"]
[Result "0-1"]
[Round "05"]
[TimeControl "180+1"]
[Date "2022.03.02"]
[WhiteClock "0:00:50"]
[BlackClock "0:01:40"]

1. e4 {[%clk 0:03:00]}  c5 {[%clk 0:02:59]} 2. Nf3 {[%clk 0:03:01]}  e6 {[%clk 0:03:00]} 3. d4 {[%clk 0:03:01]}  cxd4 {[%clk 0:03:01]} 4. Nxd4 {[%clk 0:03:02]}  Nf6 {[%clk 0:03:01]} 5. f3 {[%clk 0:03:02]}  Nc6 {[%clk 0:03:01]} 6. Nxc6 {[%clk 0:02:58]}  bxc6 {[%clk 0:03:02]} 7. Bd3 {[%clk 0:02:59]}  Qb6 {[%clk 0:03:01]} 8. Qe2 {[%clk 0:02:58]}  a5 {[%clk 0:02:58]} 9. b3 {[%clk 0:02:56]}  Ba6 {[%clk 0:02:52]} 10. Be3 {[%clk 0:02:55]}  Bxd3 {[%clk 0:02:44]} 11. Qxd3 {[%clk 0:02:35]}  Bc5 {[%clk 0:02:39]} 12. Bxc5 {[%clk 0:02:30]}  Qxc5 {[%clk 0:02:40]} 13. Nd2 {[%clk 0:02:18]}  O-O {[%clk 0:02:36]} 14. Qc4 {[%clk 0:02:14]}  Qb6 {[%clk 0:02:31]} 15. a4 {[%clk 0:02:05]}  d5 {[%clk 0:02:30]} 16. Qe2 {[%clk 0:02:02]}  Rfd8 {[%clk 0:02:25]} 17. Rd1 {[%clk 0:01:30]}  Qc5 {[%clk 0:02:25]} 18. Nf1 {[%clk 0:01:17]}  dxe4 {[%clk 0:02:21]} 19. Rxd8+ {[%clk 0:01:11]}  Rxd8 {[%clk 0:02:20]} 20. fxe4 {[%clk 0:01:11]}  h5 {[%clk 0:01:58]} 21. Ne3 {[%clk 0:00:59]}  Qc3+ {[%clk 0:01:54]} 22. Kf1 {[%clk 0:00:51]}  Nxe4 {[%clk 0:01:43]} 23. Nc4 {[%clk 0:00:50]}  Qa1+ {[%clk 0:01:40]} 0-1


[Site "https://www.chess.com"]

[Event "Titled Tuesday Blitz March 01 Late 2022"]
[White "Vifleemskaia, Svetlana"]
[Black "Vargas Pereda, Jesus Manue"]
[WhiteFideId "4129490"]
[BlackFideId "5115710"]
[WhiteElo "1901"]
[BlackElo "1776"]
[Result "1-0"]
[Round "05"]
[TimeControl "180+1"]
[Date "2022.03.02"]
[WhiteClock "0:02:24"]
[BlackClock "0:00:03"]

1. d4 {[%clk 0:03:00]}  Nf6 {[%clk 0:02:59]} 2. c4 {[%clk 0:02:59]}  g6 {[%clk 0:02:54]} 3. Nc3 {[%clk 0:02:58]}  Bg7 {[%clk 0:02:50]} 4. e4 {[%clk 0:02:56]}  d6 {[%clk 0:02:49]} 5. Nge2 {[%clk 0:02:55]}  O-O {[%clk 0:02:44]} 6. Ng3 {[%clk 0:02:56]}  e5 {[%clk 0:02:39]} 7. d5 {[%clk 0:02:56]}  a5 {[%clk 0:02:35]} 8. Be2 {[%clk 0:02:57]}  Nbd7 {[%clk 0:02:27]} 9. Be3 {[%clk 0:02:56]}  b6 {[%clk 0:01:36]} 10. Qd2 {[%clk 0:02:55]}  Nc5 {[%clk 0:01:33]} 11. h4 {[%clk 0:02:49]}  h5 {[%clk 0:01:31]} 12. Bg5 {[%clk 0:02:48]}  Qe8 {[%clk 0:01:24]} 13. Bh6 {[%clk 0:02:43]}  Kh7 {[%clk 0:01:21]} 14. Bxg7 {[%clk 0:02:42]}  Kxg7 {[%clk 0:01:21]} 15. f3 {[%clk 0:02:42]}  Bd7 {[%clk 0:00:49]} 16. Qg5 {[%clk 0:02:40]}  Rh8 {[%clk 0:00:38]} 17. O-O-O {[%clk 0:02:27]}  a4 {[%clk 0:00:33]} 18. Kb1 {[%clk 0:02:25]}  a3 {[%clk 0:00:23]} 19. b3 {[%clk 0:02:25]}  Rb8 {[%clk 0:00:04]} 20. Nb5 {[%clk 0:02:24]}  Bxb5 {[%clk 0:00:03]} 21. Nf5+ {[%clk 0:02:24]} 1-0


[Site "https://www.chess.com"]